{"text_format":"1","workbook":"xlsx","n_sheets":3,"sheets":["Készletlista","Készletkivételezés lista","Tároló keresése"],"not_rendered":{"charts":0,"images":0,"macros":1,"external_links":0,"defined_names":8,"comments":0,"pivot_tables":0},"unopened":[],"bounds":{"document_bytes":16777216,"sheet_cells":100000,"rows_first":2000,"rows_last":500,"rows_between":2000,"halvings":0,"cell_chars":16384,"cell_head_chars":4096},"cells_cut":0,"cells_raw":0,"read":"whole","date_system":"1900"}

{"sheet":"Készletlista","index":0,"n_rows":15,"n_cols":11,"rows_kept":15,"cut":false,"hidden":false,"merged":[]}
[null,"KÉSZLETLISTA"]
[null,"TELJES KÉSZLETÉRTÉK:","KÉSZLETCIKKEK:","TÁROLÓK SZÁMA:","KÉSZLETKIVÉTELEZÉS LISTA","TÁROLÓ KERESÉSE"]
[null,{"$f":"SUM(Készletlista[KÉSZLETÉRTÉK])","v":4649},{"$f":"COUNTA(Készletlista[LEÍRÁS])","v":11},{"$f":"SUMPRODUCT((1/COUNTIF(Készletlista[TÁROLÓ SZÁMA],Készletlista[TÁROLÓ SZÁMA]&\"\")))","v":6}]
[null,"Készletezési egység","LEÍRÁS","TÁROLÓ SZÁMA","HELY","EGYSÉG","MENNY.","UTÁNRENDELÉSI MENNY.","ÁR","KÉSZLETÉRTÉK","UTÁNRENDELÉS"]
[null,"SP7875","1. tétel","T345",{"$f":"IFERROR(VLOOKUP(Készletlista[[#This Row],[TÁROLÓ SZÁMA]],Tároló_keresése[],3,FALSE),\"\")","v":"2. sor, 1. hely"},"Darab",20,10,30,{"$f":"Készletlista[[#This Row],[MENNY.]]*Készletlista[[#This Row],[ÁR]]","v":600},{"$f":"IFERROR(IF(Készletlista[[#This Row],[MENNY.]]<=Készletlista[[#This Row],[UTÁNRENDELÉSI MENNY.]],1,0),0)","v":0}]
[null,"TR87680","2. tétel","T345",{"$f":"IFERROR(VLOOKUP(Készletlista[[#This Row],[TÁROLÓ SZÁMA]],Tároló_keresése[],3,FALSE),\"\")","v":"2. sor, 1. hely"},"Darab",30,15,40,{"$f":"Készletlista[[#This Row],[MENNY.]]*Készletlista[[#This Row],[ÁR]]","v":1200},{"$f":"IFERROR(IF(Készletlista[[#This Row],[MENNY.]]<=Készletlista[[#This Row],[UTÁNRENDELÉSI MENNY.]],1,0),0)","v":0}]
[null,"MK676554","3. tétel","T5789",{"$f":"IFERROR(VLOOKUP(Készletlista[[#This Row],[TÁROLÓ SZÁMA]],Tároló_keresése[],3,FALSE),\"\")","v":"1. sor, 1. hely"},"Darab",10,5,5,{"$f":"Készletlista[[#This Row],[MENNY.]]*Készletlista[[#This Row],[ÁR]]","v":50},{"$f":"IFERROR(IF(Készletlista[[#This Row],[MENNY.]]<=Készletlista[[#This Row],[UTÁNRENDELÉSI MENNY.]],1,0),0)","v":0}]
[null,"YE98767","4. tétel","T9876",{"$f":"IFERROR(VLOOKUP(Készletlista[[#This Row],[TÁROLÓ SZÁMA]],Tároló_keresése[],3,FALSE),\"\")","v":"3. sor, 2. hely"},"Doboz (10 db)",40,10,15,{"$f":"Készletlista[[#This Row],[MENNY.]]*Készletlista[[#This Row],[ÁR]]","v":600},{"$f":"IFERROR(IF(Készletlista[[#This Row],[MENNY.]]<=Készletlista[[#This Row],[UTÁNRENDELÉSI MENNY.]],1,0),0)","v":0}]
[null,"XR23423","5. tétel","T098",{"$f":"IFERROR(VLOOKUP(Készletlista[[#This Row],[TÁROLÓ SZÁMA]],Tároló_keresése[],3,FALSE),\"\")","v":"3. sor, 1. hely"},"Darab",12,10,26,{"$f":"Készletlista[[#This Row],[MENNY.]]*Készletlista[[#This Row],[ÁR]]","v":312},{"$f":"IFERROR(IF(Készletlista[[#This Row],[MENNY.]]<=Készletlista[[#This Row],[UTÁNRENDELÉSI MENNY.]],1,0),0)","v":0}]
[null,"PW98762","6. tétel","T345",{"$f":"IFERROR(VLOOKUP(Készletlista[[#This Row],[TÁROLÓ SZÁMA]],Tároló_keresése[],3,FALSE),\"\")","v":"2. sor, 1. hely"},"Darab",7,10,50,{"$f":"Készletlista[[#This Row],[MENNY.]]*Készletlista[[#This Row],[ÁR]]","v":350},{"$f":"IFERROR(IF(Készletlista[[#This Row],[MENNY.]]<=Készletlista[[#This Row],[UTÁNRENDELÉSI MENNY.]],1,0),0)","v":1}]
[null,"BM87684","7. cikk","T349",{"$f":"IFERROR(VLOOKUP(Készletlista[[#This Row],[TÁROLÓ SZÁMA]],Tároló_keresése[],3,FALSE),\"\")","v":"1. sor, 2. hely"},"Darab",10,5,10,{"$f":"Készletlista[[#This Row],[MENNY.]]*Készletlista[[#This Row],[ÁR]]","v":100},{"$f":"IFERROR(IF(Készletlista[[#This Row],[MENNY.]]<=Készletlista[[#This Row],[UTÁNRENDELÉSI MENNY.]],1,0),0)","v":0}]
[null,"BH67655","8. cikk","T5789",{"$f":"IFERROR(VLOOKUP(Készletlista[[#This Row],[TÁROLÓ SZÁMA]],Tároló_keresése[],3,FALSE),\"\")","v":"1. sor, 1. hely"},"Darab",19,10,3,{"$f":"Készletlista[[#This Row],[MENNY.]]*Készletlista[[#This Row],[ÁR]]","v":57},{"$f":"IFERROR(IF(Készletlista[[#This Row],[MENNY.]]<=Készletlista[[#This Row],[UTÁNRENDELÉSI MENNY.]],1,0),0)","v":0}]
[null,"WT98768","9. cikk","T9875",{"$f":"IFERROR(VLOOKUP(Készletlista[[#This Row],[TÁROLÓ SZÁMA]],Tároló_keresése[],3,FALSE),\"\")","v":"2. sor, 2. hely"},"Csomag (5 db)",20,30,14,{"$f":"Készletlista[[#This Row],[MENNY.]]*Készletlista[[#This Row],[ÁR]]","v":280},{"$f":"IFERROR(IF(Készletlista[[#This Row],[MENNY.]]<=Készletlista[[#This Row],[UTÁNRENDELÉSI MENNY.]],1,0),0)","v":1}]
[null,"TS3456","10. cikk","T349",{"$f":"IFERROR(VLOOKUP(Készletlista[[#This Row],[TÁROLÓ SZÁMA]],Tároló_keresése[],3,FALSE),\"\")","v":"1. sor, 2. hely"},"Darab",15,8,60,{"$f":"Készletlista[[#This Row],[MENNY.]]*Készletlista[[#This Row],[ÁR]]","v":900},{"$f":"IFERROR(IF(Készletlista[[#This Row],[MENNY.]]<=Készletlista[[#This Row],[UTÁNRENDELÉSI MENNY.]],1,0),0)","v":0}]
[null,"WDG123","11. cikk","T349",{"$f":"IFERROR(VLOOKUP(Készletlista[[#This Row],[TÁROLÓ SZÁMA]],Tároló_keresése[],3,FALSE),\"\")","v":"1. sor, 2. hely"},"Darab",25,15,8,{"$f":"Készletlista[[#This Row],[MENNY.]]*Készletlista[[#This Row],[ÁR]]","v":200},{"$f":"IFERROR(IF(Készletlista[[#This Row],[MENNY.]]<=Készletlista[[#This Row],[UTÁNRENDELÉSI MENNY.]],1,0),0)","v":0}]

{"sheet":"Készletkivételezés lista","index":1,"n_rows":9,"n_cols":9,"rows_kept":9,"cut":false,"hidden":false,"merged":[]}
[null,"KÉSZLETKIVÉTELEZÉS LISTA"]
[null,null,"KÉSZLETLISTA"]
[]
[null,"RENDELÉS SZÁMA","Készletezési egység","KIVÉTELI MENNY.","ELÉRHETŐ MENNY.","CIKK LEÍRÁSA","EGYSÉG","TÁROLÓ SZÁMA","HELY"]
[null,"TP001-1","SP7875",3,{"$f":"IFERROR(VLOOKUP(KészletkivételezésLista[[#This Row],[Készletezési egység]],Készletlista[],6,FALSE),\"\")","v":20},{"$f":"IFERROR(VLOOKUP(KészletkivételezésLista[[#This Row],[Készletezési egység]],Készletlista[],2,FALSE),\"\")","v":"1. tétel"},{"$f":"IFERROR(VLOOKUP(KészletkivételezésLista[[#This Row],[Készletezési egység]],Készletlista[],5,FALSE),\"\")","v":"Darab"},{"$f":"IFERROR(VLOOKUP(KészletkivételezésLista[[#This Row],[Készletezési egység]],Készletlista[],3,FALSE),\"\")","v":"T345"},{"$f":"IFERROR(VLOOKUP(KészletkivételezésLista[[#This Row],[Készletezési egység]],Készletlista[],4,FALSE),\"\")","v":"2. sor, 1. hely"}]
[null,"TP001-1","YE98767",1,{"$f":"IFERROR(VLOOKUP(KészletkivételezésLista[[#This Row],[Készletezési egység]],Készletlista[],6,FALSE),\"\")","v":40},{"$f":"IFERROR(VLOOKUP(KészletkivételezésLista[[#This Row],[Készletezési egység]],Készletlista[],2,FALSE),\"\")","v":"4. tétel"},{"$f":"IFERROR(VLOOKUP(KészletkivételezésLista[[#This Row],[Készletezési egység]],Készletlista[],5,FALSE),\"\")","v":"Doboz (10 db)"},{"$f":"IFERROR(VLOOKUP(KészletkivételezésLista[[#This Row],[Készletezési egység]],Készletlista[],3,FALSE),\"\")","v":"T9876"},{"$f":"IFERROR(VLOOKUP(KészletkivételezésLista[[#This Row],[Készletezési egység]],Készletlista[],4,FALSE),\"\")","v":"3. sor, 2. hely"}]
[null,"TP001-1","BM87684",2,{"$f":"IFERROR(VLOOKUP(KészletkivételezésLista[[#This Row],[Készletezési egység]],Készletlista[],6,FALSE),\"\")","v":10},{"$f":"IFERROR(VLOOKUP(KészletkivételezésLista[[#This Row],[Készletezési egység]],Készletlista[],2,FALSE),\"\")","v":"7. cikk"},{"$f":"IFERROR(VLOOKUP(KészletkivételezésLista[[#This Row],[Készletezési egység]],Készletlista[],5,FALSE),\"\")","v":"Darab"},{"$f":"IFERROR(VLOOKUP(KészletkivételezésLista[[#This Row],[Készletezési egység]],Készletlista[],3,FALSE),\"\")","v":"T349"},{"$f":"IFERROR(VLOOKUP(KészletkivételezésLista[[#This Row],[Készletezési egység]],Készletlista[],4,FALSE),\"\")","v":"1. sor, 2. hely"}]
[null,"TP001-1","TS3456",6,{"$f":"IFERROR(VLOOKUP(KészletkivételezésLista[[#This Row],[Készletezési egység]],Készletlista[],6,FALSE),\"\")","v":15},{"$f":"IFERROR(VLOOKUP(KészletkivételezésLista[[#This Row],[Készletezési egység]],Készletlista[],2,FALSE),\"\")","v":"10. cikk"},{"$f":"IFERROR(VLOOKUP(KészletkivételezésLista[[#This Row],[Készletezési egység]],Készletlista[],5,FALSE),\"\")","v":"Darab"},{"$f":"IFERROR(VLOOKUP(KészletkivételezésLista[[#This Row],[Készletezési egység]],Készletlista[],3,FALSE),\"\")","v":"T349"},{"$f":"IFERROR(VLOOKUP(KészletkivételezésLista[[#This Row],[Készletezési egység]],Készletlista[],4,FALSE),\"\")","v":"1. sor, 2. hely"}]
[null,"TP001-1","MK676554",3,{"$f":"IFERROR(VLOOKUP(KészletkivételezésLista[[#This Row],[Készletezési egység]],Készletlista[],6,FALSE),\"\")","v":10},{"$f":"IFERROR(VLOOKUP(KészletkivételezésLista[[#This Row],[Készletezési egység]],Készletlista[],2,FALSE),\"\")","v":"3. tétel"},{"$f":"IFERROR(VLOOKUP(KészletkivételezésLista[[#This Row],[Készletezési egység]],Készletlista[],5,FALSE),\"\")","v":"Darab"},{"$f":"IFERROR(VLOOKUP(KészletkivételezésLista[[#This Row],[Készletezési egység]],Készletlista[],3,FALSE),\"\")","v":"T5789"},{"$f":"IFERROR(VLOOKUP(KészletkivételezésLista[[#This Row],[Készletezési egység]],Készletlista[],4,FALSE),\"\")","v":"1. sor, 1. hely"}]

{"sheet":"Tároló keresése","index":2,"n_rows":11,"n_cols":7,"rows_kept":11,"cut":false,"hidden":false,"merged":[]}
[null,"TÁROLÓ KERESÉSE"]
[null,"KÉSZLETLISTA"]
[]
[null,"TÁROLÓ SZÁMA","LEÍRÁS","HELY","SZÉLESSÉG","MAGASSÁG","HOSSZÚSÁG"]
[null,"T345","Nagy tároló","2. sor, 1. hely",50,10,10]
[null,"T5789","Kicsi tároló","1. sor, 1. hely",25,5,5]
[null,"T9876","Nagy tároló","3. sor, 2. hely",50,10,10]
[null,"T098","Közepes tároló","3. sor, 1. hely",30,7,10]
[null,"T349","Kicsi tároló","1. sor, 2. hely",25,5,5]
[null,"T5789","Nagy tároló","4. sor, 5. hely",50,10,10]
[null,"T9875","Nagy tároló","2. sor, 2. hely",50,10,10]